bitfinex/quotes_BTCUSD_20250102
["timestamp","ask_amount","ask_price","bid_price","bid_amount"]
[1735830467432,0.205833,97166.0,97151.0,0.205865]
[1735830467637,0.205816,97174.0,97153.0,0.023]
[1735830467845,0.205816,97174.0,97154.0,0.10398632]
[1735830468045,0.2329,97170.0,97123.0,0.150171]
[1735830468187,0.2329,97170.0,97144.0,0.411758]
[1735830468383,0.205849,97159.0,97145.0,0.12698632]
[1735830468592,0.205861,97153.0,97145.0,0.12698632]
[1735830468797,0.205852,97158.0,97145.0,0.33286332]
[1735830469196,0.205859,97154.0,97145.0,0.12698632]
[1735830469521,0.20586,97153.0,97145.0,0.10398632]
[1735830469923,0.20587,97149.0,97145.0,0.10398632]
[1735830470165,0.0459,97146.0,97135.0,0.000171]
[1735830470365,0.0459,97146.0,97137.0,0.023]
[1735830470548,0.0459,97146.0,97139.0,0.023]
[1735830470755,0.0459,97146.0,97141.0,0.228885]
[1735830471129,0.251777,97146.0,97141.0,0.10398632]
[1735830471406,0.251777,97146.0,97142.0,0.023]
[1735830472018,0.252777,97146.0,97142.0,0.023]
[1735830472157,0.0469,97146.0,97142.0,0.023]
[1735830472363,0.0469,97146.0,97141.0,0.10398632]
[1735830472364,0.06301722,97146.0,97144.0,0.023]
[1735830472566,0.01711722,97146.0,97145.0,0.12698632]
[1735830473125,0.0755,97161.0,97146.0,0.023]
[1735830473331,0.0755,97161.0,97142.0,0.1]
[1735830473332,0.0161159,97160.0,97147.0,0.10398632]
[1735830473531,0.0161159,97160.0,97157.0,0.205851]
[1735830473730,0.0161159,97160.0,97158.0,0.12698632]
[1735830473888,0.0161159,97160.0,97159.0,0.228848]
[1735830474097,0.0161159,97160.0,97159.0,0.12698632]
[1735830475397,0.0161159,97160.0,97159.0,0.023]
[1735830476005,0.0161159,97160.0,97159.0,0.025]
[1735830476420,0.0161159,97160.0,97159.0,0.023]
[1735830476618,0.004,97160.0,97126.0,0.205916]
[1735830476824,0.205876,97146.0,97137.0,0.205894]
[1735830477019,0.1,97156.0,97136.0,0.041223]
[1735830477219,0.205889,97140.0,97136.0,0.041223]
[1735830477727,0.1,97156.0,97136.0,0.041223]
[1735830477728,0.205881,97144.0,97137.0,0.023]
[1735830477931,0.411762,97144.0,97137.0,0.023]
[1735830478105,0.205882,97143.0,97137.0,0.023]
[1735830478308,0.205874,97147.0,97139.0,0.023]
[1735830478485,0.205874,97147.0,97139.0,0.12698632]
[1735830479048,0.411732,97151.0,97139.0,0.12698632]
[1735830479243,0.205852,97157.0,97144.0,0.023]
[1735830479482,0.205851,97158.0,97146.0,0.023]
[1735830479689,0.0755,97161.0,97148.0,0.023]
[1735830479897,0.0755,97161.0,97159.0,0.023]
[1735830480072,0.0755,97161.0,97160.0,0.12698632]
[1735830480315,0.0755,97161.0,97160.0,0.023]
[1735830480488,0.281343,97161.0,97160.0,0.023]
[1735830480791,0.004,97158.0,97151.0,0.205863]
[1735830481002,0.004,97158.0,97152.0,0.12698632]
[1735830481315,0.0755,97161.0,97137.0,0.00014793]
[1735830481449,0.205854,97157.0,97147.0,0.023]
[1735830481632,0.205854,97157.0,97149.0,0.023]
[1735830481835,0.282345,97161.0,97149.0,0.023]
[1735830482041,0.01611547,97156.0,97149.0,0.023]
[1735830482420,0.01611547,97156.0,97151.0,0.023]
[1735830482596,0.01611547,97156.0,97153.0,0.023]
[1735830482821,0.01611547,97156.0,97155.0,0.023]
[1735830482980,0.205846,97160.0,97155.0,0.12698632]
[1735830483351,0.205866,97151.0,97140.0,0.205887]
[1735830483522,0.205858,97154.0,97144.0,0.023]
[1735830483752,0.205867,97150.0,97146.0,0.023]
[1735830483959,0.002,97156.0,97146.0,0.023]
[1735830484175,0.205856,97155.0,97138.0,0.205891]
[1735830484377,0.002,97156.0,97148.0,0.023]
[1735830484578,0.002,97156.0,97148.0,0.12698632]
[1735830484579,0.01711703,97151.0,97148.0,0.12698632]
[1735830484727,0.01711703,97151.0,97150.0,0.023]
[1735830484911,0.01711703,97151.0,97150.0,0.12698632]
[1735830485165,0.01711703,97151.0,97143.0,0.20588]
[1735830485335,0.01711703,97151.0,97145.0,0.023]
[1735830485522,0.01811703,97151.0,97147.0,0.023]
[1735830485764,0.01811703,97151.0,97138.0,0.205892]
[1735830485967,0.01711703,97151.0,97140.0,0.205888]
[1735830486200,0.002,97151.0,97149.0,0.023]
[1735830486397,0.001,97151.0,97150.0,0.33285332]
[1735830486608,0.0755,97161.0,97151.0,0.023]
[1735830486739,0.0755,97161.0,97153.0,0.023]
[1735830486951,0.0755,97161.0,97155.0,0.023]
[1735830487156,0.0755,97161.0,97132.0,0.205903]
[1735830487358,0.0755,97161.0,97138.0,0.10398632]
[1735830487635,0.205876,97146.0,97139.0,0.023]
[1735830487795,0.0755,97161.0,97141.0,0.023]
[1735830487796,0.205868,97150.0,97141.0,0.023]
[1735830487996,0.001,97155.0,97143.0,0.023]
[1735830488177,0.20586,97153.0,97145.0,0.023]
[1735830488395,0.001,97155.0,97146.0,0.10398632]
[1735830488597,0.001,97155.0,97149.0,0.002]
[1735830488937,0.001,97155.0,97150.0,0.10398632]
[1735830489117,0.0755,97161.0,97155.0,0.023]
[1735830489296,0.003,97161.0,97157.0,0.023]
[1735830489496,0.003,97161.0,97158.0,0.51568432]
[1735830489798,0.0815855,97175.0,97160.0,0.228846]
[1735830490002,0.0815855,97175.0,97161.0,0.12698632]
[1735830490232,0.0815855,97175.0,97168.0,0.205827]
[1735830490588,0.0815855,97175.0,97172.0,0.023]
[1735830490757,0.0815855,97175.0,97174.0,0.023]
[1735830490935,0.0050855,97175.0,97174.0,0.12698632]
[1735830491117,0.0050855,97175.0,97174.0,0.28077746]
[1735830491326,0.00557698,97175.0,97174.0,0.28077746]
[1735830492191,0.00557698,97175.0,97174.0,0.12698632]
[1735830492414,0.00557698,97175.0,97166.0,0.205832]
[1735830492553,0.00557698,97175.0,97174.0,0.005]
[1735830492785,0.00557698,97175.0,97167.0,0.10398632]
[1735830492978,0.01611311,97173.0,97168.0,0.023]
[1735830493178,0.01611311,97173.0,97172.0,0.22882]
[1735830493386,0.01611311,97173.0,97172.0,0.58867578]
[1735830493745,0.00657698,97175.0,97173.0,0.023]
[1735830493942,0.00657698,97175.0,97174.0,0.33280232]
[1735830494146,0.00657698,97175.0,97174.0,0.48747361]
[1735830494684,0.01611153,97184.0,97183.0,0.228797]
[1735830494857,0.01625888,97184.0,97183.0,0.48424578]
[1735830495702,0.00014735,97184.0,97183.0,0.63424578]
[1735830495934,3.5e-07,97184.0,97183.0,0.74024578]
[1735830496221,3.5e-07,97184.0,97183.0,0.73424578]
[1735830496375,3.5e-07,97184.0,97183.0,0.63424578]
[1735830496597,0.00100035,97184.0,97183.0,0.64024578]
[1735830497018,3.5e-07,97184.0,97183.0,0.63424578]
[1735830497386,3.5e-07,97184.0,97183.0,0.64428718]
[1735830497605,0.0799855,97216.0,97183.0,0.64428718]
[1735830497606,0.0799855,97216.0,97215.0,0.205729]
[1735830497801,0.00023329,97216.0,97215.0,0.48324396]
[1735830499016,0.00023329,97216.0,97215.0,0.12898632]
[1735830500985,0.01633859,97216.0,97215.0,0.12898632]
[1735830501190,0.00023329,97216.0,97215.0,0.12898632]
[1735830501413,0.0811,97231.0,97230.0,0.205697]
[1735830501613,0.0465,97244.0,97232.0,0.205693]
[1735830501914,0.00018684,97233.0,97232.0,0.48591273]
[1735830502134,0.00018684,97233.0,97232.0,0.49594636]
[1735830502683,0.00018684,97233.0,97232.0,0.64594636]
[1735830502922,0.00018684,97233.0,97232.0,0.77160406]
[1735830503125,0.00018684,97233.0,97232.0,0.66660406]
[1735830503299,0.00018684,97233.0,97232.0,0.67560406]
[1735830503498,0.00018684,97233.0,97232.0,0.67157043]
[1735830503702,0.00018684,97233.0,97232.0,0.52157043]
[1735830504220,0.00018684,97233.0,97232.0,0.67157043]
[1735830504420,8.54e-05,97251.0,97250.0,0.228655]
[1735830504623,8.54e-05,97251.0,97250.0,0.48542307]
[1735830505508,8.54e-05,97251.0,97250.0,0.63542307]
[1735830505717,8.54e-05,97251.0,97250.0,0.64142307]
[1735830505919,8.54e-05,97251.0,97250.0,0.63542307]
[1735830506118,8.54e-05,97251.0,97250.0,0.75624976]
[1735830506304,8.54e-05,97251.0,97250.0,0.77563953]
[1735830506547,8.54e-05,97251.0,97250.0,0.66663953]
[1735830506747,8.54e-05,97251.0,97250.0,0.67163953]
[1735830506951,1.524e-05,97258.0,97257.0,0.22864]
[1735830507099,1.524e-05,97258.0,97257.0,0.48424304]
[1735830508678,1.524e-05,97258.0,97257.0,0.49324304]
[1735830508877,1.524e-05,97258.0,97257.0,0.59324304]
[1735830509116,8.55e-05,97273.0,97269.0,0.305615]
[1735830509342,0.00514774,97270.0,97269.0,0.73387971]
[1735830509547,8.55e-05,97282.0,97281.0,0.273]
[1735830509753,0.00057786,97282.0,97281.0,0.73883444]
[1735830510345,0.00057786,97282.0,97281.0,0.83883444]
[1735830510537,0.00057786,97282.0,97281.0,0.73883444]
[1735830510755,0.00057786,97282.0,97281.0,0.63883444]
[1735830511173,0.00057786,97282.0,97281.0,0.64183444]
[1735830511372,1.2e-05,97282.0,97281.0,0.64183444]
[1735830511746,1.2e-05,97282.0,97281.0,0.65083444]
[1735830511955,1.2e-05,97282.0,97281.0,0.64183444]
[1735830512378,1.2e-05,97282.0,97281.0,0.64783444]
[1735830512595,1.2e-05,97282.0,97281.0,0.65383444]
[1735830513201,1.2e-05,97282.0,97281.0,0.64783444]
[1735830513398,1.2e-05,97282.0,97281.0,0.50283444]
[1735830513901,1.2e-05,97282.0,97281.0,0.27424544]
[1735830514117,0.081412,97282.0,97281.0,0.11798632]
[1735830514249,0.081412,97282.0,97281.0,0.014]
[1735830514457,0.081412,97282.0,97253.0,0.205648]
[1735830514658,0.081412,97282.0,97240.0,0.16499131]
[1735830514659,0.081412,97282.0,97257.0,0.10398632]
[1735830514878,0.081412,97282.0,97244.0,0.205667]
[1735830514879,0.1,97278.0,97244.0,0.205667]
[1735830515057,0.205621,97267.0,97245.0,0.10398632]
[1735830515414,0.0823,97277.0,97245.0,0.10398632]
[1735830515534,0.0488,97276.0,97245.0,0.10398632]
[1735830515752,0.0488,97276.0,97245.0,0.30965032]
[1735830515961,0.205636,97260.0,97245.0,0.30965032]
[1735830516162,0.205655,97251.0,97245.0,0.10398632]
[1735830516368,0.0459,97268.0,97245.0,0.10698632]
[1735830516564,0.205644,97256.0,97245.0,0.10398632]
[1735830516870,0.205644,97256.0,97228.0,0.205701]
[1735830516871,0.0777,97245.0,97231.0,0.205695]
[1735830517067,0.0777,97245.0,97234.0,0.023]
[1735830517272,0.0777,97245.0,97242.0,0.023]
[1735830517481,0.0777,97245.0,97244.0,0.023]
[1735830517676,0.0777,97245.0,97244.0,0.28648947]
[1735830518879,0.0787,97245.0,97244.0,0.29548947]
[1735830519088,0.001,97245.0,97244.0,0.29548947]
[1735830519853,0.001,97245.0,97244.0,0.29473636]
[1735830522335,0.001,97245.0,97244.0,0.44473636]
[1735830524065,0.001,97245.0,97244.0,0.45498936]
[1735830524678,0.001,97245.0,97244.0,0.30498936]
[1735830526372,0.001,97245.0,97244.0,0.45498936]
[1735830526580,0.0756,97275.0,97274.0,0.205604]
[1735830526776,0.0756,97275.0,97274.0,0.33259032]
[1735830528153,0.0786,97275.0,97274.0,0.12698632]
[1735830528385,0.0756,97275.0,97274.0,0.12698632]
[1735830528806,0.0756,97275.0,97274.0,0.12798632]
[1735830529196,0.0786,97275.0,97274.0,0.12698632]
[1735830529376,0.0756,97275.0,97274.0,0.12798632]
[1735830529759,0.0766,97275.0,97274.0,0.12798632]
[1735830530363,0.001,97275.0,97274.0,0.12798632]
[1735830530523,0.001,97275.0,97274.0,0.43378893]
[1735830530726,8.54e-05,97282.0,97281.0,0.328589]
[1735830530953,8.54e-05,97282.0,97281.0,0.69397793]
[1735830532178,8.54e-05,97282.0,97281.0,0.70297793]
[1735830532388,8.54e-05,97282.0,97281.0,0.69397793]
[1735830532609,8.54e-05,97282.0,97281.0,0.69997793]
[1735830532808,8.54e-05,97282.0,97281.0,0.70897793]
[1735830533217,0.0483,97309.0,97292.0,0.328566]
[1735830533459,0.0483,97309.0,97292.0,0.58996021]
[1735830534747,0.0483,97309.0,97292.0,0.49396021]
[1735830534876,0.0483,97309.0,97292.0,0.50296021]
[1735830535484,0.01609049,97299.0,97292.0,0.52323269]
[1735830535693,0.01609049,97299.0,97292.0,0.53351407]
[1735830536303,0.01609049,97299.0,97292.0,0.52323269]
[1735830536671,0.01609049,97299.0,97292.0,0.50296021]
[1735830537087,0.01609049,97299.0,97292.0,0.60296021]
[1735830537488,0.0483,97309.0,97292.0,0.60296021]
[1735830538358,0.0483,97309.0,97292.0,0.50296021]
[1735830540252,0.0483,97309.0,97292.0,0.60296021]
[1735830541918,0.0483,97309.0,97292.0,0.50296021]
[1735830542284,0.253832,97309.0,97292.0,0.50296021]
[1735830542473,0.41108,97305.0,97292.0,0.47996021]
[1735830542666,0.253832,97309.0,97292.0,0.47996021]
[1735830542915,0.0483,97309.0,97292.0,0.47996021]
[1735830543480,0.0483,97309.0,97292.0,0.50296021]
[1735830543682,0.01609099,97305.0,97292.0,0.50296021]
[1735830543892,0.01609099,97305.0,97292.0,0.49896021]
[1735830544103,0.01609099,97305.0,97292.0,0.59896021]
[1735830544322,0.01609099,97305.0,97292.0,0.49996021]
[1735830544524,0.0483,97309.0,97292.0,0.49096021]
[1735830544727,0.205544,97303.0,97292.0,0.47496021]
[1735830545059,0.205535,97307.0,97292.0,0.47496021]
[1735830545269,0.0483,97309.0,97292.0,0.49796021]
[1735830545934,0.01609185,97301.0,97292.0,0.49796021]
[1735830546299,0.0483,97309.0,97292.0,0.59796021]
[1735830548880,0.0483,97309.0,97292.0,0.47496021]
[1735830549406,0.0483,97309.0,97292.0,0.49796021]
[1735830550095,0.0483,97309.0,97292.0,0.59796021]
[1735830551476,0.0483,97309.0,97292.0,0.49796021]
[1735830552970,0.01609054,97306.0,97292.0,0.49796021]
[1735830553440,0.01609054,97306.0,97292.0,0.47496021]
[1735830554003,0.205543,97303.0,97292.0,0.26939421]
[1735830554212,0.205559,97296.0,97292.0,0.11198632]
[1735830554409,0.0823855,97293.0,97292.0,0.11198632]
[1735830555039,0.1297855,97293.0,97292.0,0.11198632]
[1735830555504,0.14587814,97293.0,97292.0,0.13498632]
[1735830556361,0.14587814,97293.0,97292.0,0.11198632]
[1735830556767,0.14587814,97293.0,97292.0,0.13498632]
[1735830556975,0.14587814,97293.0,97292.0,0.11198632]
[1735830557575,0.35144214,97293.0,97292.0,0.008]
[1735830557760,0.205585,97283.0,97282.0,0.0001708]
[1735830557933,0.330185,97283.0,97282.0,0.0001708]
[1735830558550,0.0803,97264.0,97259.0,0.09043554]
[1735830558726,0.0803,97264.0,97260.0,0.10398632]
[1735830559167,0.0469,97262.0,97260.0,0.10398632]
[1735830559309,0.205632,97261.0,97259.0,0.00048035]
[1735830559944,0.205632,97261.0,97260.0,0.001]
[1735830560145,0.0469,97262.0,97260.0,0.001]
[1735830560700,0.0469,97262.0,97261.0,0.023]
[1735830561129,0.0469,97262.0,97261.0,0.28463012]
[1735830561533,0.205554,97298.0,97269.0,0.1]
[1735830561879,0.09154921,97307.0,97279.0,0.023]
[1735830562095,0.1238,97292.0,97282.0,0.023]
[1735830562307,0.1238,97292.0,97283.0,0.10398632]
[1735830562508,0.1238,97292.0,97284.0,0.023]
[1735830562712,0.1238,97292.0,97286.0,0.023]
[1735830562918,0.205568,97291.0,97288.0,0.023]
[1735830563075,0.411137,97291.0,97288.0,0.023]
[1735830564701,0.1268,97292.0,97290.0,0.023]
[1735830564907,0.01609451,97291.0,97290.0,0.12698632]
[1735830565121,0.01809451,97291.0,97290.0,0.12698632]
[1735830565512,0.01609451,97291.0,97290.0,0.12698632]
[1735830565717,0.01909451,97291.0,97290.0,0.2820797]
[1735830565922,0.003,97291.0,97290.0,0.2820797]
[1735830566135,0.003,97291.0,97290.0,0.0001708]
[1735830566337,0.003,97291.0,97290.0,0.0011708]
[1735830566742,0.004,97291.0,97290.0,0.0011708]
[1735830567256,0.003,97291.0,97290.0,0.0011708]
[1735830567678,0.154,97291.0,97290.0,0.0011708]
[1735830567814,0.0784,97273.0,97261.0,0.09043554]
[1735830568004,0.205625,97265.0,97261.0,0.09043554]
[1735830568202,0.205625,97265.0,97252.0,0.09043554]
[1735830568401,0.25461,97272.0,97258.0,0.00048035]
[1735830568653,0.20562,97267.0,97259.0,0.10398632]
[1735830569105,0.205629,97263.0,97260.0,0.023]
[1735830569325,0.20562,97267.0,97260.0,0.12698632]
[1735830569543,0.20562,97267.0,97260.0,0.12648632]
[1735830570123,0.205621,97266.0,97260.0,0.12648632]
[1735830570330,0.20563,97262.0,97258.0,0.00048035]
[1735830570587,0.052,97272.0,97258.0,0.00048035]
[1735830570835,0.002,97267.0,97258.0,0.00048035]
[1735830571051,0.049,97272.0,97259.0,0.10398632]
[1735830571258,0.001,97267.0,97261.0,0.205632]
[1735830571468,0.001,97266.0,97262.0,0.10398632]
[1735830571625,0.001,97266.0,97263.0,0.023]
[1735830571828,0.001,97266.0,97258.0,0.00048035]
[1735830571829,0.01709688,97266.0,97264.0,0.10398632]
[1735830572169,0.001,97266.0,97265.0,0.22698632]
[1735830572413,0.001,97266.0,97265.0,0.37629481]
[1735830572830,0.0766,97286.0,97265.0,0.25329481]
[1735830573034,0.0766,97286.0,97277.0,0.205597]
[1735830573263,0.0766,97286.0,97278.0,0.12698632]
[1735830574625,0.0766,97286.0,97278.0,0.33358232]
[1735830575290,0.016095,97285.0,97278.0,0.33358232]
[1735830576021,0.0766,97286.0,97279.0,0.023]
[1735830576256,0.0766,97286.0,97284.0,0.023]
[1735830576461,0.0776,97286.0,97285.0,0.33256732]
[1735830576941,0.0766,97286.0,97285.0,0.33256732]
[1735830577136,0.0766,97286.0,97285.0,0.023]
[1735830577322,0.0776,97286.0,97285.0,0.023]
[1735830577561,0.0776,97286.0,97278.0,0.002]
[1735830577770,0.0766,97286.0,97271.0,0.205611]
[1735830577979,0.205581,97285.0,97274.0,0.205604]
[1735830578187,0.205581,97285.0,97275.0,0.10398632]
[1735830578188,0.411162,97285.0,97275.0,0.10398632]
[1735830578300,0.0776,97286.0,97275.0,0.10398632]
[1735830578301,0.0776,97286.0,97278.0,0.023]
[1735830578525,0.0776,97286.0,97280.0,0.023]
[1735830578729,0.0776,97286.0,97281.0,0.10398632]
[1735830578953,0.0776,97286.0,97282.0,0.023]
[1735830579148,0.0776,97286.0,97284.0,0.023]
[1735830579352,8.54e-05,97286.0,97285.0,0.12698632]
[1735830579554,8.54e-05,97286.0,97285.0,0.35294118]
[1735830579749,0.0010854,97286.0,97285.0,0.50807963]
[1735830580162,8.54e-05,97286.0,97285.0,0.50807963]
[1735830580698,0.0020854,97286.0,97285.0,0.50807963]
[1735830581106,0.0010854,97286.0,97285.0,0.51707963]
[1735830581302,0.0010854,97286.0,97285.0,0.51907963]
[1735830582465,0.0010854,97286.0,97285.0,0.32056732]
[1735830582674,0.0010854,97286.0,97285.0,0.47846309]
[1735830582867,0.0010854,97286.0,97285.0,0.50146309]
[1735830583443,0.0010854,97286.0,97285.0,0.13798632]
[1735830583809,0.0010854,97286.0,97285.0,0.32056732]
[1735830584025,0.0010854,97286.0,97285.0,0.47455919]
[1735830584389,8.54e-05,97286.0,97285.0,0.12698632]
[1735830584597,8.54e-05,97286.0,97271.0,0.20561]
[1735830584813,0.0453,97284.0,97272.0,0.10398632]
[1735830584948,0.1953,97284.0,97261.0,0.0904783]
[1735830585183,0.1,97277.0,97261.0,0.0904783]
[1735830585363,0.1,97277.0,97260.0,0.0001708]
[1735830585564,0.20563,97262.0,97260.0,0.0001708]
[1735830585759,0.0778,97261.0,97260.0,0.0001708]
[1735830585964,0.2278,97261.0,97260.0,0.0001708]
[1735830586165,0.2752,97261.0,97258.0,0.09095865]
[1735830586363,0.3277,97259.0,97258.0,0.04095865]
[1735830586622,0.3277,97259.0,97251.0,0.22619577]
[1735830586623,0.355663,97246.0,97230.0,0.246881]
[1735830586846,0.355663,97246.0,97245.0,0.00031854]
[1735830587380,0.205648,97254.0,97246.0,0.023]
[1735830587677,0.0777,97259.0,97248.0,0.023]
[1735830587838,0.0777,97259.0,97254.0,0.205646]
[1735830588010,0.0777,97259.0,97256.0,0.023]
[1735830588211,0.0777,97259.0,97258.0,0.023]
[1735830588489,0.205604,97274.0,97260.0,0.023]
[1735830588694,0.205604,97274.0,97262.0,0.023]
[1735830588898,0.0825,97275.0,97262.0,0.023]
[1735830589074,0.004,97259.0,97246.0,0.205663]
[1735830589292,0.205628,97263.0,97250.0,0.023]
[1735830589497,0.205628,97263.0,97252.0,0.023]
[1735830589699,0.205628,97263.0,97249.0,0.205657]
[1735830589700,0.205628,97263.0,97254.0,0.023]
[1735830589925,0.205637,97259.0,97256.0,0.023]
[1735830590144,0.003,97259.0,97257.0,0.10398632]
[1735830590349,0.003,97259.0,97258.0,0.023]
[1735830590530,0.205616,97269.0,97258.0,0.12698632]
[1735830590728,0.205616,97269.0,97260.0,0.024]
[1735830590929,0.205616,97269.0,97262.0,0.023]
[1735830591142,0.205616,97269.0,97264.0,0.023]
[1735830591341,0.205616,97269.0,97266.0,0.023]
[1735830591565,0.411232,97269.0,97266.0,0.023]
[1735830591767,0.206616,97269.0,97266.0,0.023]
[1735830591996,0.207616,97269.0,97266.0,0.023]
[1735830592114,0.206616,97269.0,97266.0,0.023]
[1735830592323,0.720666,97269.0,97266.0,0.023]
[1735830592523,0.721666,97269.0,97266.0,0.023]
[1735830592947,0.720666,97269.0,97266.0,0.023]
[1735830593341,0.721666,97269.0,97266.0,0.023]
[1735830593971,0.73776317,97269.0,97266.0,0.023]
[1735830594378,0.53214717,97269.0,97266.0,0.023]
[1735830594801,0.53214717,97269.0,97268.0,0.023]
[1735830594953,0.53214717,97269.0,97268.0,0.28411434]
[1735830595149,0.51605,97269.0,97268.0,0.28411434]
[1735830595843,0.51505,97269.0,97268.0,0.28411434]
[1735830596069,0.51505,97269.0,97233.0,0.305691]
[1735830596274,0.51405,97269.0,97249.0,0.10398632]
[1735830596474,0.205626,97264.0,97250.0,0.205655]
[1735830596684,0.719676,97264.0,97252.0,0.023]
[1735830596893,0.719676,97264.0,97253.0,0.10398632]
[1735830597098,0.1997,97263.0,97248.0,0.000171]
[1735830597225,0.205647,97254.0,97248.0,0.000171]
[1735830597413,0.719697,97254.0,97248.0,0.000171]
[1735830598233,0.51405,97254.0,97249.0,0.51530032]
[1735830599046,0.51405,97254.0,97250.0,0.023]
[1735830599251,0.51405,97254.0,97252.0,0.023]
[1735830599458,0.51805,97254.0,97253.0,0.12698632]
[1735830599654,0.51805,97254.0,97248.0,0.000171]
[1735830599655,0.205649,97253.0,97248.0,0.000171]
[1735830599856,0.284857,97249.0,97248.0,0.000171]
[1735830600056,0.798907,97249.0,97248.0,0.000171]
[1735830600339,0.798907,97249.0,97245.0,0.00031854]
[1735830600340,0.35,97246.0,97245.0,0.00031854]
[1735830600545,0.94325,97246.0,97245.0,0.00031854]
[1735830601338,0.94325,97246.0,97202.0,0.09063913]
[1735830601339,0.205745,97208.0,97202.0,0.09063913]
[1735830601448,0.205745,97208.0,97204.0,0.041196]
[1735830601656,0.925541,97208.0,97203.0,0.00010134]
[1735830601868,0.15,97205.0,97203.0,0.00010134]
[1735830602069,0.36566077,97204.0,97203.0,0.00010134]
[1735830602275,0.87971077,97204.0,97203.0,0.00010134]
[1735830603285,0.51405,97204.0,97203.0,0.00010134]
[1735830603695,0.719802,97204.0,97203.0,0.00010134]
[1735830604108,0.720802,97204.0,97203.0,0.00010134]
[1735830604307,0.51505,97204.0,97203.0,0.00010134]
[1735830605917,0.51505,97204.0,97203.0,0.00027234]
[1735830606321,0.52566489,97204.0,97203.0,0.00027234]
[1735830607367,0.51505,97204.0,97203.0,0.00027234]
[1735830608327,0.51505,97204.0,97203.0,0.4858106]
[1735830608525,0.51505,97204.0,97203.0,0.2800566]
[1735830608757,0.51505,97204.0,97203.0,0.00027234]
[1735830608959,0.91325,97204.0,97203.0,0.00027234]
[1735830609163,0.91325,97204.0,97192.0,0.0001706]
[1735830609164,0.15,97194.0,97192.0,0.0001706]
[1735830609363,0.355776,97193.0,97192.0,0.0001706]
[1735830609637,0.88081803,97193.0,97192.0,0.00031839]
[1735830610604,0.2,97185.0,97170.0,0.004121]
[1735830610807,0.1808,97168.0,97163.0,0.0001706]
[1735830611010,0.800679,97168.0,97167.0,0.00031795]
[1735830611214,1.16679335,97168.0,97167.0,0.00031795]
[1735830611412,0.35,97164.0,97163.0,0.0001706]
[1735830611623,1.06261368,97164.0,97163.0,0.00066208]
[1735830611820,0.94485,97164.0,97163.0,0.00066208]
[1735830612270,0.355865,97151.0,97150.0,0.0001708]
[1735830612444,0.869915,97151.0,97150.0,0.0001708]
[1735830613065,0.8860326,97151.0,97150.0,0.0001708]
[1735830613394,1.16870474,97151.0,97150.0,0.0001708]
[1735830614138,1.1684326,97151.0,97150.0,0.0001708]
[1735830614343,1.1744326,97151.0,97150.0,0.0011708]
[1735830614748,1.17969677,97151.0,97150.0,0.0001708]
[1735830614951,1.0774326,97151.0,97150.0,0.0011708]
[1735830615155,1.0834326,97151.0,97150.0,0.0251708]
[1735830616542,0.817315,97151.0,97150.0,0.0251708]
[1735830617043,0.61145,97151.0,97150.0,0.0251708]
[1735830617814,0.52905,97151.0,97150.0,0.33502412]
[1735830618208,0.52005,97151.0,97150.0,0.48311624]
[1735830618547,0.51405,97151.0,97150.0,0.48311624]
[1735830618751,0.52305,97151.0,97150.0,0.48311624]
[1735830619388,0.51405,97151.0,97150.0,0.58211624]
[1735830619797,0.372528,97151.0,97150.0,0.83311624]
[1735830620159,0.006,97151.0,97150.0,0.83311624]
[1735830620391,0.0808,97193.0,97163.0,0.328839]
[1735830620593,0.0808,97193.0,97163.0,0.58741238]
[1735830620962,0.205795,97185.0,97163.0,0.48741238]
[1735830621194,0.15,97176.0,97163.0,0.12698632]
[1735830621571,0.15,97176.0,97163.0,0.28298925]
[1735830621843,0.15,97176.0,97163.0,0.28259897]
[1735830621994,0.00149209,97164.0,97163.0,0.28959897]
[1735830622353,0.00049209,97164.0,97163.0,0.28259897]
[1735830622565,0.00049209,97164.0,97163.0,0.43259897]
[1735830622744,0.00249209,97164.0,97163.0,0.43259897]
[1735830623173,0.00449209,97164.0,97163.0,0.43259897]
[1735830623374,0.00449209,97164.0,97163.0,0.44278303]
[1735830623556,0.00249209,97164.0,97163.0,0.44278303]
[1735830624608,0.00049209,97164.0,97163.0,0.44478303]
[1735830624811,0.00149209,97164.0,97163.0,0.45178303]
[1735830625293,0.00149209,97164.0,97163.0,0.30178303]
[1735830625892,0.00149209,97164.0,97163.0,0.3226291]
[1735830627214,0.00149209,97164.0,97163.0,0.31244504]
[1735830627414,0.00149209,97164.0,97163.0,0.28944504]
[1735830627815,0.00149209,97164.0,97163.0,0.31244504]
[1735830628589,0.00149209,97164.0,97163.0,0.26859897]
[1735830629482,0.00166329,97164.0,97163.0,0.26859897]
[1735830629687,0.00166329,97164.0,97163.0,0.16461265]
[1735830630243,0.07796329,97164.0,97163.0,0.009]
[1735830630900,0.07796329,97164.0,97150.0,0.0001708]
[1735830630901,0.355865,97151.0,97150.0,0.0001708]
[1735830631316,0.20585,97158.0,97150.0,0.0001708]
[1735830631525,0.08396329,97164.0,97150.0,0.0001708]
[1735830631728,0.205861,97153.0,97150.0,0.0001708]
[1735830631947,0.411722,97153.0,97150.0,0.0001708]
[1735830632149,0.005,97151.0,97150.0,0.0001708]
[1735830632306,0.0062673,97152.0,97150.0,0.0001708]
[1735830632509,0.0062662,97151.0,97150.0,0.0001708]
[1735830632705,0.205861,97153.0,97150.0,0.0001708]
[1735830632908,0.205843,97161.0,97150.0,0.0001708]
[1735830632909,0.0062662,97151.0,97150.0,0.0001708]
[1735830633116,0.01611503,97158.0,97150.0,0.0001708]
[1735830633341,0.0062761,97151.0,97150.0,0.0001708]
[1735830633566,0.01611503,97158.0,97151.0,0.205865]
[1735830633873,0.01611503,97158.0,97152.0,0.12698632]
[1735830634475,0.21214828,97157.0,97150.0,0.0001708]
[1735830634674,0.001,97151.0,97150.0,0.0001708]
[1735830635090,0.33690162,97151.0,97150.0,0.0001708]
[1735830635289,0.33590162,97151.0,97150.0,0.0001708]
[1735830637131,0.1,97147.0,97146.0,0.0001706]
[1735830637442,0.86867632,97147.0,97146.0,0.0001706]
[1735830637587,0.88570786,97147.0,97146.0,0.0001706]